[Event "7th Porticcio Open 2022"]
[Site "Porticcio"]
[Date "2022.07.03"]
[Round "2.4"]
[White "Maurizzi, Marc Andria"]
[Black "Zhukenov, Aituar"]
[Result "1-0"]
[ECO "B10"]
[WhiteElo "2506"]
[BlackElo "2148"]
[Annotator "TA"]
[PlyCount "135"]
[EventDate "2022.07.02"]
[EventType "swiss"]
[EventCountry "FRA"]
[SourceTitle "playchess.com"]
[Source "ChessBase"]
[SourceQuality "1"]
[TimeControl "5400+30"]

{[%evp 9,135,16,23,31,21,25,22,26,23,22,30,20,31,9,22,18,16,0,0,0,17,26,19,0,0,0,0,0,-12,-53,-3,0,0,-32,-15,-22,84,0,-7,0,0,0,70,-101,-102,-137,-112,-147,-127,-192,-192,-178,-187,-188,-178,-195,0,0,241,0,0,0,28,0,35,35,35,35,93,87,173,171,170,167,170,170,219,208,175,195,308,334,391,376,354,272,460,446,435,383,765,764,928,852,1305,1301,1247,886,2477,2057,1535,302,302,302,302,302,302,302,758,711,5566,5374,29975,29976,29975,29976,29975,29972,29967,0,29975,29976,29976,29977,29982,29983,29987,29988]} 1. e4 {[%emt 0:00:04]} c6 {[%emt 0:00:12]} 2. Nf3 {[%emt 0:01:14]} d5 {[%emt 0:00:01]} 3. d3 {[%emt 0:00:04]} Nd7 {[%emt 0:03:32]} 4. Nc3 {[%emt 0:03:49]} Ngf6 {[%emt 0:02:40] [#]} 5. exd5 $146 {[%emt 0:06:09]} ({Predecessor:} 5. e5 Ng8 6. e6 fxe6 7. d4 e5 8. dxe5 e6 9. Bd3 Nc5 10. Ng5 Nxd3+ 11. Qxd3 {0-1 (48) Sychev,K (2572)-Seo,J (2455) Chess.com INT 2020}) 5... cxd5 {[%emt 0:06:21]} 6. d4 {[%emt 0:00:02] Prevents e5. B10: Caro-Kann: 2 d3 and 2 c4.} e6 {[%emt 0:09:24]} 7. Bd3 {[%emt 0:03:02]} Bd6 {[%emt 0:01:25]} 8. O-O {[%emt 0:01:46] The position is equal.} a6 {[%emt 0:05:49]} 9. Re1 {[%emt 0:03:16]} Qc7 {[%emt 0:04:40]} 10. Ne2 {[%emt 0:03:32]} O-O 11. Ng3 {[%emt 0:00:06]} e5 {[%emt 0:07:41]} 12. dxe5 {[%emt 0:02:56]} Nxe5 {[%emt 0:00:02]} 13. Bg5 {[%emt 0:06:30]} Nxf3+ {[%emt 0:06:51]} 14. gxf3 {[%emt 0:03:57]} Be5 {[%emt 0:10:54]} 15. c3 {[%emt 0:05:59][%cal Of3f4]} h6 $1 {[%emt 0:03:44]} 16. Be3 {[%emt 0:09:29]} Bd7 {[%emt 0:10:48]} 17. Qd2 {[%emt 0:00:52][%cal Oe3h6]} Rfe8 {[%emt 0:00:17]} 18. Kh1 {[%emt 0:09:23][%cal Oe3h6]} Qc6 {[%emt 0:05:18][%cal Od5d4]} 19. Be2 {[%emt 0:02:04]} Ng4 {[%emt 0:06:46]} 20. Bd4 $11 {[%emt 0:01:59]} (20. fxg4 d4+ 21. Kg1 dxe3 22. Qxe3 Qc7 $15) 20... Nf6 {[%emt 0:00:52]} 21. Rg1 {[%emt 0:01:28]} Bxd4 {[%emt 0:00:31]} 22. Qxd4 {[%emt 0:00:32]} Qd6 {[%emt 0:01:22] [#]} (22... Re7 $11) 23. Bd3 {[%emt 0:01:54]} (23. Ne4 $1 $16 {[%cal Re4d6]} Rxe4 24. fxe4) 23... Qe5 {[%emt 0:00:40]} 24. Qh4 {[%emt 0:00:02]} Kh8 {[%emt 0:04:05][%cal Od5d4]} 25. Ne2 {[%emt 0:00:58]} Bf5 {[%emt 0:02:36]} (25... Ng8 $11) 26. Bxf5 $2 {[%emt 0:01:16]} (26. Rg5 $1 $14 Ne4 27. Bxe4 (27. fxe4 Bxe4+ 28. Rg2 Bxd3 $15) 27... dxe4 28. Qh5 exf3 29. Nd4) 26... Qxe2 $17 {[%emt 0:02:28]} (26... Qxf5 27. Nd4 Qd7 28. Rg3 $14 (28. Qg3 Nh5 $11)) 27. Qg3 {[%emt 0:00:37][%csl Gg1][%cal Rg3g7]} g6 {[%emt 0:03:01]} 28. Qh3 {[%emt 0:05:06]} Kg7 {[%emt 0:00:45] ...Re5 is the strong threat.} (28... Qxf2 $6 29. Qxh6+ Nh7 30. Raf1 Qxb2 31. Rxg6 fxg6 32. Bxg6 $11) 29. Rg2 {[%emt 0:00:55]} (29. Qg3 $17 Nh5 30. Qg4) 29... Qd2 $1 $19 {[%emt 0:01:03]} (29... Qxb2 30. Rag1 $14) 30. Rag1 {[%emt 0:00:45][%cal Rf5g6] Hoping for Bxg6!} Re1 {[%emt 0:00:39]} (30... Qxb2 31. Bxg6 $1 {[%mdl 512]} Qxc3 32. Bh5+ Kf8 33. Qf5 $18) 31. Qg3 {[%emt 0:00:38][%cal Rf5g6]} Nh5 {[%emt 0:00:56]} 32. Qc7 {[%emt 0:00:28][%cal Rg2g6] [#]} Nf4 {[%emt 0:00:29]} (32... g5 $1 $19 {aiming for ...Rae8.} 33. h4 (33. Qxb7 $2 Rae8 $19) 33... Rae8) 33. Rxe1 $11 {[%emt 0:00:53] Really sharp!} Qxe1+ {[%emt 0:00:30]} 34. Rg1 {[%emt 0:00:01]} Qd2 {[%emt 0:00:19]} 35. Qe5+ $40 {[%emt 0:00:13][%mdl 128] White is up to no good.} Kg8 {[%emt 0:00:36]} (35... Kh7 $5 {[%cal Ra8g8]}) 36. h4 {[%emt 0:02:47][%cal Oh4h5]} h5 {[%emt 0:00:23]} (36... Ne2 $5 {[%cal Re2g1]} 37. Rxg6+ fxg6 38. Qe6+ Kg7 39. Qxg6+ Kf8 40. Qf6+ Kg8 41. Qg6+ Kf8 42. Qf6+ Kg8 43. Qg6+ Kf8 $11) 37. Qe3 {[%emt 0:03:37]} Qxe3 {[%emt 0:00:45]} 38. fxe3 $14 {[%emt 0:00:01][%mdl 4096] Endgame KRB-KRN} Ne2 {[%emt 0:00:32]} (38... Kf8 $14) 39. Rg2 $16 {[%emt 0:00:00] Strongly threatening Bb1.} Re8 {[%emt 0:00:30]} 40. Bxg6 $1 $18 {[%emt 0:00:41]} ({Much weaker is} 40. Rxe2 gxf5 41. Kg2 Kg7 $11) 40... fxg6 {[%emt 0:00:24]} 41. Rxe2 {[%emt 0:00:01] KR-KR} Kf7 {[%emt 0:00:36]} 42. Kg2 {[%emt 0:00:10]} Kf6 {[%emt 0:00:15]} (42... Re6 $142 43. Kf2 Kf6) 43. f4 {[%emt 0:00:19]} b5 {[%emt 0:00:47]} 44. Kf3 {[%emt 0:00:07] Black must now prevent Rd2.} Rb8 {[%emt 0:00:28]} (44... Rc8 $142 45. Rd2 Rc5) 45. Rd2 {[%emt 0:00:32]} Ke6 {[%emt 0:00:03]} 46. Rg2 {[%emt 0:00:13]} Kf6 {[%emt 0:00:35]} 47. Rg5 {[%emt 0:00:05]} b4 $2 {[%emt 0:00:54]} (47... Rd8 48. Ke2 a5) 48. Rxd5 {[%emt 0:00:08]} bxc3 {[%emt 0:00:01]} 49. bxc3 {[%emt 0:00:01]} Rc8 $2 {[%emt 0:00:20]} (49... Rb1 50. c4 Kf7 51. Rd7+ Ke6) 50. Rd6+ {[%emt 0:00:05]} Kf7 {[%emt 0:00:05]} 51. Rxa6 {[%emt 0:00:42]} Rxc3 {[%emt 0:00:02]} 52. a4 {[%emt 0:00:27]} Ra3 {[%emt 0:00:08]} 53. a5 {[%emt 0:00:05] Threatens to win with Ra8.} Kg7 {[%emt 0:00:04]} 54. Ke4 {[%emt 0:00:07]} Ra1 {[%emt 0:00:19]} 55. f5 $2 {[%emt 0:03:22]} (55. Ra8 Kf6 56. a6) 55... Ra4+ {[%emt 0:00:32]} 56. Ke5 {[%emt 0:01:18] White threatens Ra7+ and mate.} gxf5 {[%emt 0:00:03]} 57. Kxf5 {[%emt 0:00:23]} Rxh4 {[%emt 0:00:05]} 58. e4 {[%emt 0:00:27][%cal Be3e4,Be4e5][%mdl 32]} Rh1 $2 {[%emt 0:00:28]} (58... Rh2 59. Kg5 Rg2+ 60. Kxh5 Re2) 59. e5 {[%emt 0:01:58]} Re1 {[%emt 0:02:51]} 60. Ra7+ {[%emt 0:10:05]} Kf8 {[%emt 0:00:14]} 61. a6 {[%emt 0:01:08]} Ra1 {[%emt 0:00:29]} 62. Kf6 {[%emt 0:01:13][%cal Ra7a8]} Rf1+ {[%emt 0:00:08]} 63. Ke6 {[%emt 0:00:13]} Ra1 {[%emt 0:00:03]} 64. Kf6 {[%emt 0:01:14][%cal Ra7a8]} Rf1+ {[%emt 0:00:02]} 65. Kg5 {[%emt 0:00:09] White mates.} Ra1 {[%emt 0:00:05]} 66. Kxh5 {[%emt 0:00:23]} Ra5 {[%emt 0:00:09]} 67. Kg6 {[%emt 0:00:38]} Rxe5 {[%emt 0:00:04]} 68. Kf6 {[%emt 0:00:03] Quite a comeback for White.  Weighted Error Value: White=0.31/Black=0.47} 1-0

[Event "7th Porticcio Open 2022"]
[Site "Porticcio"]
[Date "2022.07.03"]
[Round "2.5"]
[White "Praveen Kumar C"]
[Black "Yankelevich, Lev"]
[Result "1/2-1/2"]
[ECO "E46"]
[WhiteElo "2143"]
[BlackElo "2496"]
[Annotator "TA"]
[PlyCount "112"]
[EventDate "2022.07.02"]
[EventType "swiss"]
[EventCountry "FRA"]
[SourceTitle "playchess.com"]
[Source "ChessBase"]
[SourceQuality "1"]
[TimeControl "5400+30"]

{[%evp 12,112,0,-21,-21,-26,-26,-22,-13,-27,-25,-29,-22,-19,-19,-30,-35,-35,-16,-61,-59,-65,-73,-56,-50,-56,-48,-118,-85,-87,-37,-37,-31,-48,-41,-53,-43,-43,-45,-109,-110,-115,-100,-104,-91,-157,-139,-121,-76,-67,-67,-57,-59,-75,-76,-68,-68,-68,-48,-88,-44,-54,-47,-124,-64,-80,0,0,20,-90,0,-561,-214,-637,0,0,49,42,49,51,155,180,175,156,181,185,190,118,139,110,122,103,125,0,0,0,0,0,0,0,0,0,0]} 1. d4 {[%emt 0:01:40]} Nf6 {[%emt 0:00:06]} 2. c4 {[%emt 0:00:08]} e6 {[%emt 0:00:05]} 3. Nc3 {[%emt 0:00:09]} Bb4 {[%emt 0:00:07]} 4. e3 {[%emt 0:00:13]} O-O {[%emt 0:00:09]} 5. Nge2 {[%emt 0:00:12]} Re8 {[%emt 0:00:39]} 6. a3 {[%emt 0:00:25]} Bf8 {[%emt 0:00:05]} 7. g3 {[%emt 0:03:54]} d5 {[%emt 0:00:06] Against e4. E46: Nimzo-Indian: Rubinstein: 4 e3 0-0 5 Ne2 without early Bd3.} 8. cxd5 {[%emt 0:00:20]} exd5 {[%emt 0:00:07]} 9. Bg2 {[%emt 0:00:18]} c6 {[%emt 0:00:48]} 10. O-O {[%emt 0:00:18] [#]} h6 $146 {[%emt 0:01:23]} ({Predecessor:} 10... a5 11. b3 Na6 12. Kh1 h5 13. f3 c5 14. dxc5 Nxc5 15. Nd4 Ra6 16. Rb1 g6 {½-½ (54) Nenezic,M (2532)-Eljanov,P (2672) Chess.com INT 2021}) 11. f3 {[%emt 0:05:48]} c5 {[%emt 0:01:15]} 12. Nf4 {[%emt 0:02:26]} cxd4 {[%emt 0:10:10]} 13. exd4 {[%emt 0:00:26]} Nc6 {[%emt 0:01:07]} 14. Qd3 {[%emt 0:08:03] Against Bf5} b6 {[%emt 0:01:53][%cal Oc6d4]} 15. Nfe2 {[%emt 0:10:44]} a5 {[%emt 0:01:04]} 16. Be3 {[%emt 0:05:24]} Ba6 {[%emt 0:03:47]} 17. Qd2 {[%emt 0:00:12]} a4 {[%emt 0:09:56] Hoping for ...Na5.} 18. Bf2 {[%emt 0:01:16]} Na5 {[%emt 0:00:17]} 19. Rad1 {[%emt 0:01:52]} (19. Qc2 $15) 19... Nc4 {[%emt 0:08:30]} 20. Qc2 {[%emt 0:04:10]} Ne3 {[%emt 0:00:10]} (20... Qc8 $17 {[%cal Oc4a3] Threatens to win with ...Nxa3!} 21. Qc1 Nxa3 $1) 21. Bxe3 $15 {[%emt 0:00:11]} Rxe3 {[%emt 0:00:04]} 22. Rfe1 {[%emt 0:01:25]} Bc4 {[%emt 0:06:11]} 23. Nc1 {[%emt 0:02:30]} Rxe1+ {[%emt 0:01:12]} 24. Rxe1 {[%emt 0:00:02]} b5 {[%emt 0:00:17]} 25. Nd3 {[%emt 0:03:32] Inhibits b4.} (25. N1a2 $15) 25... Qb6 $17 {[%emt 0:00:31]} 26. Ne2 {[%emt 0:02:52]} Re8 {[%emt 0:14:39]} 27. Qd2 {[%emt 0:07:30] Against Re3} Nd7 {[%emt 0:01:26]} 28. f4 {[%emt 0:02:06] Inhibits Ne5.} ({White should try} 28. Kh1) 28... Bd6 {[%emt 0:09:27]} 29. Kh1 {[%emt 0:01:48]} Bxd3 {[%emt 0:04:30]} 30. Qxd3 {[%emt 0:00:08]} Nf6 {[%emt 0:00:01]} 31. Bf3 {[%emt 0:02:05]} b4 {[%emt 0:01:08] Strongly threatening ...bxa3.} 32. axb4 {[%emt 0:01:58]} Qxb4 {[%emt 0:00:06]} 33. Ra1 {[%emt 0:00:18]} Rc8 {[%emt 0:11:28] Prevents Qc3.} 34. Kg2 {[%emt 0:07:06]} Rc4 {[%emt 0:01:17]} 35. Rb1 {[%emt 0:02:29]} Rc7 {[%emt 0:04:10]} 36. Kh3 {[%emt 0:03:58]} Qb7 {[%emt 0:09:44]} 37. Ra1 {[%emt 0:02:47]} ({White should play} 37. Kg2 $15) 37... Ne4 {[%emt 0:00:12]} ({Much worse is} 37... Qxb2 $6 38. Rxa4 g6 39. Ra6 $15) (37... Rc4 $17 38. Ra2 g6) 38. Kg2 $1 $15 {[%emt 0:00:09]} f5 {[%emt 0:00:51]} (38... Qxb2 $17 39. Rxa4 g6) 39. Rxa4 $11 {[%emt 0:02:18]} Qxb2 {[%emt 0:00:06]} 40. Qa6 {[%emt 0:00:08] [#]} (40. Ra5 $11 {remains equal.}) 40... Rc2 {[%emt 0:00:17]} (40... Kh7 $1 $17 {White must now prevent ...Rc2.} 41. Ra5 Qb3) 41. Kh3 $2 {[%emt 0:00:40][%mdl 8192]} (41. Ra5 $1 $11) 41... Kh7 $2 {[%emt 0:00:17]} (41... Qb3 42. Bxe4 dxe4 43. Qxd6 Qxa4 44. Qe6+ Kh8 45. Qxf5 Qa6) 42. Ra5 $2 {[%emt 0:02:16]} (42. Ra1) 42... Nf2+ $2 {[%emt 0:01:09]} (42... Qb3 $19 43. Bxe4 dxe4) 43. Kg2 {[%emt 0:00:13]} Ng4 {[%emt 0:00:20]} 44. Bxg4 {[%emt 0:00:46]} fxg4 {[%emt 0:00:06]} 45. Qd3+ {[%emt 0:00:04]} Kg8 {[%emt 0:00:05]} (45... g6 $14 46. Ra7+ Kh8 47. Ra8+ Kg7) 46. Ra8+ {[%emt 0:01:42]} Bf8 {[%emt 0:00:01]} 47. Kf2 {[%emt 0:00:17]} Rc6 {[%emt 0:02:05]} 48. Qf5 {[%emt 0:01:40][%csl Gf5,LRd5,LRf8,LRg4][%cal Ra8f8] Inhibits Re6.} Rf6 {[%emt 0:00:01]} 49. Qxd5+ {[%emt 0:00:21]} (49. Qxg4 $18 Qb1 50. h4) 49... Kh7 $16 {[%emt 0:00:36]} 50. Ra7 {[%emt 0:02:14] White is more active.} Qb1 {[%emt 0:00:35]} 51. Rb7 $36 {[%emt 0:01:50][%mdl 2048] Black is under strong pressure.} Bb4 {[%emt 0:00:29] [#]} 52. Qb5 {[%emt 0:02:43]} ({White has to play} 52. Ke3 $1 $16) 52... Be1+ {[%emt 0:00:04] The position is equal.} 53. Kf1 {[%emt 0:00:30] The board is on fire.} Bb4+ $1 {[%emt 0:00:10]} 54. Kf2 $1 {[%emt 0:00:18]} Be1+ {[%emt 0:00:05]} 55. Kf1 {[%emt 0:00:54]} Bb4+ $1 {[%emt 0:00:03]} 56. Kf2 $1 {[%emt 0:00:16]} Be1+ {[%emt 0:01:46] Weighted Error Value: White=0.36/Black=0.36} 1/2-1/2

[Event "7th Porticcio Open 2022"]
[Site "Porticcio"]
[Date "2022.07.03"]
[Round "2.6"]
[White "Rakotomaharo, Fy Antenaina"]
[Black "Pieri, Pierre-Louis"]
[Result "1-0"]
[ECO "B47"]
[WhiteElo "2490"]
[BlackElo "2124"]
[Annotator "TA"]
[PlyCount "59"]
[EventDate "2022.07.02"]
[EventType "swiss"]
[EventCountry "FRA"]
[SourceTitle "playchess.com"]
[Source "ChessBase"]
[SourceQuality "1"]
[TimeControl "5400+30"]

{[%evp 13,59,17,42,26,47,31,35,-7,-6,-1,-7,-16,-15,-26,-16,-58,-45,-55,-53,-106,-110,-111,-111,-119,-108,-139,-91,-87,68,61,95,90,103,96,208,222,291,272,608,621,605,604,570,566,1467,1479,1463,1378]} 1. e4 {[%emt 0:00:03]} c5 {[%emt 0:00:11]} 2. Nf3 {[%emt 0:00:21]} e6 {[%emt 0:00:16]} 3. d4 {[%emt 0:00:27]} cxd4 {[%emt 0:00:11]} 4. Nxd4 {[%emt 0:00:05]} Nc6 {[%emt 0:00:11]} 5. Nc3 {[%emt 0:00:07]} Qc7 {[%emt 0:00:15]} 6. g3 {[%emt 0:00:44]} a6 {[%emt 0:00:23]} 7. Bg2 {[%emt 0:00:05]} h5 {[%emt 0:00:23]} 8. h3 {[%emt 0:03:08] B47: Sicilian: Taimanov: 5 Nc3 Qc7 6 f4, 6 g3 and 6 Be2.} h4 {[%emt 0:00:15]} 9. g4 {[%emt 0:00:04]} Bc5 {[%emt 0:00:29] [#]} 10. Nde2 $146 {[%emt 0:02:19] White is slightly better.} ({Predecessor:} 10. Nb3 Ba7 11. Qe2 Nge7 12. Be3 Ng6 13. O-O-O Nf4 14. Qf3 Bxe3+ 15. fxe3 Ng6 16. Nd4 {0-1 (35) Kim,A (2464)-Gukesh,D (2547) Moscow 2019}) 10... b5 {[%emt 0:09:09]} 11. O-O {[%emt 0:01:03]} Bb7 {[%emt 0:04:02]} 12. Bf4 {[%emt 0:01:45]} Ne5 {[%emt 0:09:58]} 13. Qd2 {[%emt 0:11:54][%cal Ob2b4]} Ne7 {[%emt 0:02:55]} 14. Rad1 {[%emt 0:05:21]} N7g6 {[%emt 0:08:18]} 15. Bh2 {[%emt 0:00:27]} O-O {[%emt 0:06:51]} 16. Qg5 {[%emt 0:09:55]} (16. Nd4 $15) 16... b4 $17 {[%emt 0:14:07]} 17. Na4 {[%emt 0:00:56]} Ba7 {[%emt 0:04:30]} 18. b3 {[%emt 0:09:50]} Qxc2 {[%emt 0:09:02]} 19. Nd4 {[%emt 0:00:35]} Qc7 {[%emt 0:05:39]} (19... f6 $142 $1 {Threatens to win with ...Qxd1.} 20. Qd2 Qxd2 21. Rxd2 Rac8) 20. Kh1 {[%emt 0:00:36] aiming for f4.} d6 $2 {[%emt 0:01:41]} (20... Rac8 $1 $17) 21. f4 $14 {[%emt 0:01:56][%cal Bf2f4,Bf4f5,Bf5g6][%mdl 32]} Bxd4 {[%emt 0:01:42]} 22. Rxd4 {[%emt 0:00:12]} Nc6 {[%emt 0:01:20]} 23. Rdd1 {[%emt 0:05:35] White is more active.} Qd8 {[%emt 0:03:23] [#]} (23... Qe7 $16) 24. Qh5 $1 $18 {[%emt 0:00:43]} e5 {[%emt 0:02:05]} 25. f5 {[%emt 0:00:42]} Nf4 $2 {[%emt 0:03:34]} (25... Nce7 26. fxg6 Nxg6) 26. Bxf4 {[%emt 0:01:50] White is clearly winning.} exf4 {[%emt 0:00:06]} 27. g5 {[%emt 0:00:06]} ({Stronger than} 27. e5 Qb8 28. Nb6 {[#]} (28. exd6 Ne5 $11) 28... Nd4 $1 $11) 27... Ne5 {[%emt 0:00:46][%cal Of4f3]} 28. Rxf4 {[%emt 0:00:51]} g6 {[%emt 0:01:57]} 29. Qh6 {[%emt 0:00:18]} f6 {[%emt 0:00:23]} 30. fxg6 {[%emt 0:00:16] Weighted Error Value: White=0.10 (very precise) /Black=0.44} 1-0

[Event "7th Porticcio Open 2022"]
[Site "Porticcio"]
[Date "2022.07.03"]
[Round "2.7"]
[White "Karttunen, Mika"]
[Black "Stoenescu, Radu"]
[Result "1-0"]
[ECO "B90"]
[WhiteElo "2484"]
[BlackElo "2107"]
[Annotator "TA"]
[PlyCount "93"]
[EventDate "2022.07.02"]
[EventType "swiss"]
[EventCountry "FRA"]
[SourceTitle "playchess.com"]
[Source "ChessBase"]
[SourceQuality "1"]
[TimeControl "5400+30"]

{[%evp 23,93,33,45,34,105,88,86,74,77,23,22,27,26,0,53,72,60,44,87,87,94,101,109,99,106,56,102,93,118,125,161,169,160,176,149,154,271,248,271,230,307,197,332,327,298,229,310,307,309,292,305,216,193,52,52,53,45,45,49,54,170,160,771,745,730,716,715,640,714,692,510,465]} 1. e4 {[%emt 0:00:03] ChessBase II} c5 {[%emt 0:00:13]} 2. Nf3 {[%emt 0:00:07]} d6 {[%emt 0:00:11]} 3. d4 {[%emt 0:00:06]} cxd4 {[%emt 0:00:06]} 4. Nxd4 {[%emt 0:00:04]} Nf6 {[%emt 0:00:04]} 5. Nc3 {[%emt 0:00:07]} a6 {[%emt 0:00:17]} 6. f3 {[%emt 0:00:10]} e5 {[%emt 0:01:31]} 7. Nb3 {[%emt 0:00:33]} Be7 {[%emt 0:00:39]} 8. Be3 {[%emt 0:00:10]} Be6 {[%emt 0:00:50]} 9. Qd2 {[%emt 0:00:12]} O-O {[%emt 0:00:18]} 10. O-O-O {[%emt 0:01:15]} a5 {[%emt 0:00:14]} 11. a4 {[%emt 0:00:20]} Na6 {[%emt 0:00:57]} 12. g4 {[%emt 0:00:46]} Nb4 {[%emt 0:01:51]} 13. g5 {[%emt 0:00:31] B90: Sicilian Najdorf: Unusual White 6th moves, 6 Be3 Ng4 and 6 Be3 e5.} Ne8 {[%emt 0:00:15]} (13... Nh5 $14) 14. f4 {[%emt 0:09:02]} f5 {[%emt 0:31:18] [#]} 15. gxf6 $146 {[%emt 0:07:28] White is better.} ({Predecessor:} 15. Rg1 fxe4 16. fxe5 Qc8 17. g6 dxe5 18. gxh7+ Kh8 19. Kb1 Nf6 20. Qg2 Rf7 21. Bg5 {1-0 (46) Vovk,A (2642)-Gao,R (2533) Cappelle la Grande 2015 EXT 2016 [ChessBase II]}) 15... Nxf6 {[%emt 0:05:37]} 16. f5 {[%emt 0:03:10]} ({Better is} 16. Rg1 $1 $16) 16... Bf7 {[%emt 0:01:35]} 17. Rg1 {[%emt 0:01:23]} Kh8 $1 {[%emt 0:00:19]} 18. Qf2 {[%emt 0:19:39]} Qc8 {[%emt 0:03:49]} (18... Rg8 $1 $11) 19. Kb1 $14 {[%emt 0:07:28]} Rg8 {[%emt 0:08:28]} 20. Bg5 {[%emt 0:08:24]} d5 {[%emt 0:07:16]} 21. exd5 {[%emt 0:03:18]} Nfxd5 {[%emt 0:06:39]} 22. Nxd5 {[%emt 0:07:06]} Nxd5 {[%emt 0:00:04]} 23. Bxe7 {[%emt 0:02:30]} Nxe7 {[%emt 0:00:04]} 24. Bd3 {[%emt 0:05:38]} (24. f6 $16 Qf5 25. fxg7+ Rxg7 26. Qxf5 Nxf5 27. Rxg7 Kxg7 28. Rd7) 24... Nd5 {[%emt 0:07:49]} (24... Bxb3 $14 {was preferrable.} 25. cxb3 Qc6) 25. Nc5 $16 {[%emt 0:06:14][%cal Bb3c5,Bc5e6,Be6g5][%mdl 32] aiming for Be4.} Nf6 {[%emt 0:01:41]} 26. Bb5 {[%emt 0:01:30]} Rd8 {[%emt 0:04:19] Against Nd7} 27. Rxd8+ {[%emt 0:01:44]} Qxd8 {[%emt 0:00:01]} 28. Qg3 {[%emt 0:00:07][%csl Gg1][%cal Rg3g7]} Nh5 {[%emt 0:00:59]} 29. Qxe5 $40 {[%emt 0:00:11][%mdl 128] Ne6 is the strong threat. White is out for blood. 0x0.001670177d46dp-1022s more active pieces.} Rc8 {[%emt 0:02:18]} (29... Qd5 $16 {was called for.} 30. Qxd5 Bxd5) 30. Ne6 $1 $18 {[%emt 0:03:15]} Qf6 {[%emt 0:02:55]} 31. Qe4 {[%emt 0:01:14]} b6 {[%emt 0:02:57]} 32. Qb7 {[%emt 0:02:20]} Rg8 {[%emt 0:00:13]} (32... Rxc2 $142 33. Kxc2 Qxf5+ 34. Kc1 Qxe6 35. Qa8+ Bg8) 33. Ng5 {[%emt 0:01:05]} ({Not} 33. Qxb6 Qxf5 34. Nd8 Bg6 $18) 33... Rf8 {[%emt 0:01:04]} 34. Qe4 {[%emt 0:01:24]} h6 {[%emt 0:03:27]} 35. Ne6 {[%emt 0:01:03]} Rc8 {[%emt 0:00:52]} 36. Be2 {[%emt 0:02:31]} Rg8 {[%emt 0:00:17]} 37. Bxh5 {[%emt 0:02:40]} Bxh5 {[%emt 0:00:01] [#]} 38. Re1 {[%emt 0:01:09]} (38. b3 $1 $18) 38... Re8 $14 {[%emt 0:01:43]} 39. b3 {[%emt 0:02:06]} Bf7 $1 {[%emt 0:01:24]} 40. Qe5 {[%emt 0:01:02]} (40. Qg2 {with more complications.} g6 41. Rf1 gxf5 42. Nf4) 40... Qxe5 {[%emt 0:03:56]} 41. Rxe5 {[%emt 0:00:04][%mdl 4096] Endgame KRB-KRN} g5 {[%emt 0:00:31] [#]} ({Black should play} 41... Kg8 $14) 42. c4 $1 $18 {[%emt 0:00:54]} Re7 $2 {[%emt 0:00:49] [#]} (42... g4 $16 43. Kc2 h5) 43. Nxg5 $1 {[%emt 0:00:26][%mdl 512] White is clearly winning.} Rd7 {[%emt 0:00:47]} 44. Nxf7+ Rxf7 45. Re6 {[%emt 0:01:10][%csl LRb6,LRh6]} Kg7 {[%emt 0:00:33]} 46. Rxb6 {[%emt 0:00:22]} Rxf5 {[%emt 0:00:06]} 47. Rb5 {[%emt 0:00:07] Weighted Error Value: White=0.22 (precise) /Black=0.31} 1-0

[Event "7th Porticcio Open 2022"]
[Site "Porticcio"]
[Date "2022.07.03"]
[Round "2.8"]
[White "Cahen, Alexis"]
[Black "Venkatesh, M.R."]
[Result "0-1"]
[ECO "C20"]
[WhiteElo "2141"]
[BlackElo "2479"]
[Annotator "RC"]
[PlyCount "60"]
[EventDate "2022.07.02"]
[EventType "swiss"]
[EventCountry "FRA"]
[SourceTitle "playchess.com"]
[Source "ChessBase"]
[SourceQuality "1"]
[TimeControl "5400+30"]

1. e4 {[%emt 0:00:08]} e5 {[%emt 0:01:40]} 2. Qh5 {[%emt 0:03:33]} Nc6 {[%emt 0:03:55]} 3. Bc4 {[%emt 0:00:09]} g6 {[%emt 0:00:35]} 4. Qf3 {[%emt 0:00:07]} Nf6 {[%emt 0:02:06]} 5. Ne2 {[%emt 0:00:33]} Bg7 {[%emt 0:01:13]} 6. d3 {[%emt 0:00:24]} d6 {[%emt 0:04:32]} 7. h3 {[%emt 0:00:29]} Na5 {[%emt 0:04:29]} 8. Nbc3 {[%emt 0:09:16]} Nxc4 {[%emt 0:01:06]} 9. dxc4 {[%emt 0:06:17]} Be6 {[%emt 0:00:15]} 10. b3 {[%emt 0:02:15]} Nd7 {[%emt 0:18:21]} 11. g4 {[%emt 0:06:26]} c6 {[%emt 0:23:38]} 12. Ba3 {[%emt 0:04:59]} Nc5 {[%emt 0:00:21]} 13. b4 {[%emt 0:03:42]} Nd7 {[%emt 0:02:30]} 14. Nd5 {[%emt 0:11:40]} Nb6 {[%emt 0:01:04]} 15. Nxb6 {[%emt 0:00:58]} axb6 {[%emt 0:00:08]} 16. b5 {[%emt 0:09:14]} Bxc4 {[%emt 0:02:02]} 17. bxc6 {[%emt 0:00:47]} bxc6 {[%emt 0:00:02]} 18. Qc3 {[%emt 0:01:25]} Ra4 {[%emt 0:02:43]} 19. Rd1 {[%emt 0:07:28]} c5 {[%emt 0:00:20]} 20. Ng3 {[%emt 0:05:05]} O-O {[%emt 0:02:39]} 21. h4 {[%emt 0:04:46]} d5 {[%emt 0:01:29]} 22. h5 {[%emt 0:05:43]} d4 {[%emt 0:01:05]} 23. Qf3 {[%emt 0:01:31]} Qf6 {[%emt 0:01:43]} 24. Nf5 {[%emt 0:05:42]} gxf5 {[%emt 0:00:06]} 25. exf5 {[%emt 0:00:21]} e4 {[%emt 0:00:13]} 26. Qh3 {[%emt 0:02:22]} d3 {[%emt 0:00:46]} 27. Bc1 {[%emt 0:01:07]} dxc2 {[%emt 0:00:15]} 28. Rd2 {[%emt 0:01:19]} Qc3 {[%emt 0:00:09]} 29. g5 {[%emt 0:00:59]} Rd8 {[%emt 0:02:18]} 30. f6 {[%emt 0:01:03]} Rxd2 {[%emt 0:00:09]} 0-1